bitfinex/quotes_ETHUSD_20241217
["timestamp","ask_amount","ask_price","bid_price","bid_amount"]
[1734395068294,3.0,3972.2,3969.1,0.57518758]
[1734395068493,1.59708065,3972.3,3969.2,0.7603]
[1734395068807,0.55,3972.1,3969.6,0.7603]
[1734395069013,0.12349575,3971.9,3969.8,0.7603]
[1734395070156,0.86119316,3971.8,3969.8,0.7603]
[1734395070305,0.12349575,3971.9,3969.8,0.7603]
[1734395070707,0.86129567,3971.8,3969.8,0.7603]
[1734395070902,0.12349575,3971.9,3969.8,0.7603]
[1734395071103,1.29273412,3971.8,3969.8,0.7603]
[1734395071299,2.15403418,3971.7,3969.8,0.7603]
[1734395071503,1.59708065,3971.6,3969.8,0.7603]
[1734395071734,3.20111483,3971.5,3969.8,0.7603]
[1734395071937,3.75117522,3971.4,3969.8,0.7603]
[1734395072108,2.15452178,3971.3,3969.8,0.7603]
[1734395072553,3.20160243,3971.3,3969.8,0.7603]
[1734395072705,2.15452178,3971.2,3969.8,0.7603]
[1734395072905,1.04708065,3970.9,3969.8,0.7603]
[1734395073149,0.55,3970.5,3969.8,0.7603]
[1734395073447,3.20160243,3970.4,3969.8,0.7603]
[1734395073606,0.86131033,3970.3,3969.8,0.7603]
[1734395073938,1.04708065,3970.4,3969.8,0.7603]
[1734395074099,0.8623146,3970.3,3969.8,0.7603]
[1734395074505,1.59708065,3970.5,3969.8,0.7603]
[1734395074506,1.04708065,3970.4,3969.8,0.7603]
[1734395074705,0.55,3970.3,3969.8,0.7603]
[1734395075003,1.04708065,3970.7,3969.8,0.7603]
[1734395075223,1.04708065,3970.8,3969.8,0.7603]
[1734395075441,1.04708065,3971.0,3969.8,0.7603]
[1734395075606,1.04708065,3971.2,3969.8,0.7603]
[1734395075927,2.15626427,3971.1,3969.8,0.7603]
[1734395076108,0.86258752,3971.0,3969.8,0.7603]
[1734395076635,1.04708065,3971.1,3969.8,0.7603]
[1734395076843,2.15620358,3971.0,3969.8,0.7603]
[1734395077173,0.86236327,3970.9,3969.8,0.7603]
[1734395077839,0.55,3970.8,3969.8,0.7603]
[1734395078008,0.86236327,3970.7,3969.8,0.7603]
[1734395078204,0.86257535,3970.6,3969.8,0.7603]
[1734395078420,2.15636593,3970.5,3969.8,0.7603]
[1734395078651,2.12062097,3970.8,3969.8,0.7603]
[1734395078652,1.04708065,3970.7,3969.8,0.7603]
[1734395078813,2.15620925,3970.6,3969.8,0.7603]
[1734395079411,1.59708065,3970.8,3969.8,0.7603]
[1734395079614,3.20348715,3970.7,3969.8,0.7603]
[1734395079805,1.04708065,3970.9,3969.8,0.7603]
[1734395080023,4.04708065,3971.1,3969.8,0.7603]
[1734395080260,2.1564823,3971.0,3969.8,0.7603]
[1734395080423,0.86259292,3970.9,3969.8,0.7603]
[1734395080625,0.86259292,3970.8,3969.8,0.7603]
[1734395080955,1.04708065,3971.0,3969.8,0.7603]
[1734395081108,2.15636826,3970.9,3969.8,0.7603]
[1734395081510,1.04708065,3970.7,3969.8,0.7603]
[1734395081715,4.04708065,3970.9,3969.8,0.7603]
[1734395081915,0.55,3970.9,3969.8,0.7603]
[1734395082219,0.55,3971.0,3969.8,0.7603]
[1734395082422,1.59708065,3971.0,3969.8,0.7603]
[1734395082658,0.86226972,3970.9,3969.8,0.7603]
[1734395082808,1.04708065,3970.9,3969.8,0.7603]
[1734395083163,0.55,3970.5,3969.8,0.7603]
[1734395083364,3.75265232,3970.5,3969.8,0.7603]
[1734395083513,2.15557167,3970.4,3969.8,0.7603]
[1734395083860,3.20265232,3970.4,3969.8,0.7603]
[1734395084028,0.86226972,3970.3,3969.8,0.7603]
[1734395084227,0.86226972,3970.2,3969.8,0.7603]
[1734395084429,1.04708065,3970.4,3968.1,0.8053]
[1734395084629,1.04708065,3970.2,3968.1,0.8053]
[1734395084829,0.86297125,3970.1,3968.1,0.8053]
[1734395085038,1.04708065,3970.2,3968.3,0.8053]
[1734395085236,0.86300244,3970.1,3968.3,0.8053]
[1734395086064,1.04708065,3970.3,3968.3,0.8053]
[1734395086275,0.86296373,3970.2,3968.3,0.8053]
[1734395086433,0.86296373,3970.1,3968.3,0.8053]
[1734395086758,1.04708065,3970.3,3968.3,0.8053]
[1734395086963,0.86292359,3970.2,3968.3,0.8053]
[1734395087366,1.41305414,3970.1,3968.3,0.8053]
[1734395087579,1.04708065,3969.8,3968.3,0.8053]
[1734395087875,3.20461687,3969.7,3968.3,0.8053]
[1734395088017,3.20461687,3969.6,3968.3,0.8053]
[1734395088222,2.15753622,3969.5,3968.3,0.8053]
[1734395088415,3.20461687,3969.5,3968.3,0.8053]
[1734395088646,0.86305414,3969.4,3968.3,0.8053]
[1734395088848,3.20407925,3969.4,3968.3,0.8053]
[1734395089169,1.04708065,3969.6,3968.3,0.8053]
[1734395089316,3.0,3969.4,3968.3,0.8053]
[1734395089752,1.59708065,3969.5,3968.3,0.8053]
[1734395089920,0.86240437,3969.4,3968.3,0.8053]
[1734395090129,0.55,3969.5,3968.3,0.8053]
[1734395090473,0.55,3969.6,3968.3,0.8053]
[1734395090762,3.75274043,3969.6,3968.3,0.8053]
[1734395091063,1.90934743,3969.5,3968.3,0.8053]
[1734395091262,0.55,3969.3,3968.3,0.8053]
[1734395091853,4.23908065,3969.3,3968.3,0.8053]
[1734395092054,4.23908065,3969.3,3968.0,1.0]
[1734395092055,1.59708065,3969.0,3968.0,1.0]
[1734395092269,0.55,3968.8,3968.0,1.0]
[1734395092777,0.55,3968.9,3968.0,1.0]
[1734395093075,1.41191789,3968.8,3968.0,1.0]
[1734395093231,0.86189483,3968.7,3968.0,1.0]
[1734395093429,0.55,3968.6,3968.0,1.0]
[1734395093737,0.55,3968.8,3968.0,1.0]
[1734395093951,0.55,3968.6,3968.0,1.0]
[1734395094165,0.55,3968.8,3968.0,1.0]
[1734395094574,0.55,3968.6,3968.0,1.0]
[1734395095070,0.55,3968.8,3968.0,1.0]
[1734395095479,0.12758729,3969.1,3968.1,0.8325]
[1734395095690,1.04708065,3969.5,3968.1,0.8325]
[1734395095840,0.12333438,3969.7,3968.1,0.8325]
[1734395096038,0.12333438,3969.7,3968.3,0.8325]
[1734395097436,5.03243319,3969.7,3968.3,0.8325]
[1734395097636,5.15501572,3969.6,3968.3,0.8325]
[1734395097849,3.0,3969.4,3968.3,0.8325]
[1734395098182,0.55,3969.4,3968.3,0.8325]
[1734395098385,3.55,3969.4,3968.3,0.8325]
[1734395099287,0.86172666,3969.3,3968.3,0.8325]
[1734395099511,3.55,3969.4,3968.3,0.8325]
[1734395099711,3.55,3969.2,3968.3,0.8325]
[1734395099920,0.55,3969.2,3968.3,0.8325]
[1734395100117,0.81060528,3969.3,3968.3,0.8325]
[1734395100615,0.55,3969.1,3968.3,0.8325]
[1734395101017,0.86140042,3969.0,3968.3,0.8325]
[1734395101313,0.55,3969.1,3968.0,1.0]
[1734395101518,0.26060528,3969.3,3968.0,1.0]
[1734395101519,0.55,3969.2,3968.0,1.0]
[1734395101835,0.67284201,3968.8,3968.0,1.0]
[1734395102972,1.04708065,3969.2,3968.1,0.7698]
[1734395103178,0.26060528,3969.3,3968.1,0.7698]
[1734395103629,4.04708065,3969.8,3968.1,0.7698]
[1734395103630,3.0,3969.6,3968.1,0.7698]
[1734395103791,2.642,3969.2,3968.1,0.7698]
[1734395103995,3.0,3968.9,3968.1,0.7698]
[1734395104303,3.0,3968.9,3968.0,1.0]
[1734395104637,0.55,3968.7,3968.0,1.0]
[1734395104816,0.55,3968.5,3968.0,1.0]
[1734395105119,0.55,3968.1,3965.3,0.12948848]
[1734395105304,0.55,3968.1,3966.9,0.7698]
[1734395105513,0.55,3967.9,3966.4,0.7698]
[1734395105722,0.55,3967.7,3966.4,0.7698]
[1734395106231,0.55,3967.7,3963.5,1.04727978]
[1734395106232,2.642,3967.4,3965.9,0.7698]
[1734395106427,0.55,3966.8,3965.3,0.7698]
[1734395106672,3.0,3966.5,3964.5,0.7698]
[1734395106799,0.55,3966.3,3964.5,0.7698]
[1734395106997,3.55,3966.1,3964.5,0.7698]
[1734395107195,0.55,3965.6,3964.5,0.7698]
[1734395107398,6.192,3965.6,3964.1,0.7698]
[1734395107693,3.0,3965.3,3963.7,0.7952]
[1734395107896,0.55,3965.0,3963.7,0.7952]
[1734395108095,3.0,3965.1,3963.0,2.33696794]
[1734395108096,3.0,3964.6,3963.0,2.33696794]
[1734395108423,3.55,3964.5,3963.0,2.33696794]
[1734395108726,0.8024,3963.6,3963.0,2.33696794]
[1734395109021,0.55,3963.5,3963.0,2.33696794]
[1734395109721,0.55,3963.1,3963.0,2.32761861]
[1734395109926,0.55,3963.3,3963.0,2.32761861]
[1734395110501,0.55,3963.1,3963.0,2.10392651]
[1734395110812,0.67610487,3963.1,3960.8,0.7952]
[1734395110983,3.67610487,3963.1,3960.8,0.7952]
[1734395111183,0.55,3962.9,3960.8,0.7952]
[1734395111513,0.55,3962.7,3960.8,0.7952]
[1734395111695,0.59601528,3962.7,3960.8,0.7952]
[1734395111897,0.55,3962.5,3960.8,0.7952]
[1734395112993,0.55,3962.5,3960.3,0.7952]
[1734395113411,0.8024,3962.2,3959.7,0.7952]
[1734395113722,0.55,3961.9,3959.7,0.7952]
[1734395113924,3.55,3961.9,3959.7,0.7952]
[1734395114238,0.59601528,3961.9,3959.7,0.7952]
[1734395114595,0.55,3961.7,3959.7,0.7952]
[1734395115440,0.55,3961.5,3959.7,0.7952]
[1734395115810,0.8215,3961.4,3959.1,0.8268]
[1734395116010,0.59601528,3961.3,3959.1,0.8268]
[1734395117218,0.55,3960.6,3959.1,0.8268]
[1734395117934,0.26038895,3960.6,3959.1,0.8268]
[1734395118540,0.04601528,3961.3,3959.1,0.8268]
[1734395118914,0.26028916,3960.6,3959.1,0.8268]
[1734395119254,0.55,3961.2,3959.1,0.8268]
[1734395119563,0.55,3960.5,3959.1,0.8268]
[1734395119714,0.55,3960.7,3959.1,0.8268]
[1734395121251,0.26034914,3961.1,3959.1,0.8268]
[1734395121832,0.26034914,3961.1,3959.3,0.8268]
[1734395122142,3.78779064,3962.5,3959.3,0.8268]
[1734395122343,0.26054128,3961.6,3959.3,0.8268]
[1734395122544,0.04601528,3962.4,3959.3,0.8268]
[1734395122918,3.04601528,3962.4,3959.3,0.8268]
[1734395123462,2.642,3962.0,3959.3,0.8268]
[1734395123618,0.8215,3962.3,3959.3,0.8268]
[1734395123619,0.55,3961.4,3959.3,0.8268]
[1734395123955,0.67869751,3961.4,3959.3,0.8268]
[1734395124350,0.55,3961.2,3959.3,0.8268]
[1734395125351,3.55,3961.2,3959.3,0.8268]
[1734395125754,0.55,3961.2,3959.3,0.8268]
[1734395126154,0.55,3961.3,3959.3,0.8268]
[1734395126477,1.009162,3961.1,3959.3,0.8268]
[1734395128259,1.009162,3961.1,3959.5,0.8268]
[1734395128433,0.26048168,3961.3,3959.7,0.8268]
[1734395128634,0.8268,3961.2,3959.7,0.8268]
[1734395129440,0.55,3961.1,3959.7,0.8268]
[1734395133405,0.55,3960.9,3959.7,0.8268]
[1734395133605,0.55,3961.1,3959.7,0.8268]
[1734395133606,3.55,3961.1,3959.7,0.8268]
[1734395134048,3.67823486,3961.1,3959.7,0.8268]
[1734395134250,6.192,3960.3,3958.8,0.7753]
[1734395134464,3.0,3960.0,3957.9,0.7753]
[1734395134689,0.55,3959.9,3957.9,0.7753]
[1734395136093,3.57353587,3960.2,3957.9,0.7753]
[1734395136094,0.55,3960.1,3957.9,0.7753]
[1734395137436,0.04601528,3960.3,3958.1,0.7753]
[1734395137640,0.04601528,3960.3,3958.3,0.7753]
[1734395137839,0.26032334,3961.0,3958.3,0.7753]
[1734395138047,0.8268,3961.2,3958.3,0.7753]
[1734395138826,0.55,3961.1,3958.3,0.7753]
[1734395139637,0.55,3960.9,3958.3,0.7753]
[1734395139998,0.26052735,3961.0,3958.3,0.7753]
[1734395140256,0.26052735,3961.0,3958.2,0.13505638]
[1734395140257,0.26052735,3961.0,3958.6,0.55]
[1734395140544,0.8268,3961.2,3958.9,0.7753]
[1734395140744,0.8268,3961.2,3959.1,0.7753]
[1734395142415,0.55,3961.1,3959.1,0.7753]
[1734395142613,0.81056533,3961.1,3959.1,0.7753]
[1734395143508,3.55,3960.9,3959.1,0.7753]
[1734395144412,0.26056533,3961.1,3959.2,0.02525719]
[1734395144615,0.26056533,3961.1,3958.2,0.38505638]
[1734395144616,0.26056533,3961.1,3958.8,0.55]
[1734395144864,0.26056533,3961.1,3959.0,0.7753]
[1734395146216,0.55,3961.0,3959.0,0.7753]
[1734395147371,3.55,3961.0,3959.0,0.7753]
[1734395147713,2.642,3960.8,3959.0,0.7753]
[1734395147919,3.192,3960.4,3959.0,0.7753]
[1734395148177,0.55,3960.1,3959.0,0.7753]
[1734395148360,3.55,3960.1,3959.0,0.7753]
[1734395148512,0.55,3960.1,3959.0,0.7753]
[1734395148723,0.55,3960.4,3959.0,0.7753]
[1734395149238,0.55,3960.5,3959.0,0.7753]
[1734395149689,0.55,3960.3,3959.0,0.7753]
[1734395151314,3.55,3960.1,3959.0,0.7753]
[1734395151484,0.55,3960.1,3959.0,0.7753]
[1734395152057,1.03271192,3960.7,3959.0,0.7753]
[1734395152058,0.55,3960.4,3959.0,0.7753]
[1734395152295,1.03271192,3960.0,3959.0,0.7753]
[1734395152502,3.85912896,3960.0,3959.0,0.7753]
[1734395152796,0.2607173,3959.9,3959.0,0.7753]
[1734395153175,1.58271192,3959.7,3959.0,0.7753]
[1734395153382,0.86014927,3959.6,3959.0,0.7753]
[1734395153702,3.182954,3959.6,3959.0,0.7753]
[1734395153909,3.182954,3959.5,3959.0,0.7753]
[1734395154061,0.86014927,3959.4,3959.0,0.7753]
[1734395154256,1.03271192,3959.6,3959.0,0.7753]
[1734395154772,4.57062097,3959.8,3959.0,0.7753]
[1734395154773,1.03271192,3959.8,3959.0,0.7753]
[1734395154974,0.2607173,3959.9,3959.0,0.7753]
[1734395157328,1.03271192,3960.0,3959.0,0.7753]
[1734395157536,1.03271192,3959.8,3959.0,0.7753]
[1734395158019,3.18895041,3959.8,3959.0,0.7753]
[1734395158165,3.18895041,3959.7,3959.0,0.7753]
[1734395158364,2.15623849,3959.6,3959.0,0.7753]
[1734395158577,1.03271192,3959.7,3959.0,0.7753]
[1734395158578,0.86248566,3959.5,3959.0,0.7753]
[1734395158875,1.03271192,3959.7,3959.0,0.7753]
[1734395159100,1.03271192,3959.5,3959.0,0.7753]
[1734395159267,3.18960824,3959.4,3959.0,0.7753]
[1734395159466,2.15689632,3959.3,3959.0,0.7753]
[1734395159683,0.86275853,3959.2,3959.0,0.7753]
[1734395159984,1.03271192,3959.2,3959.0,0.7753]
[1734395160498,3.1895675,3959.2,3959.0,0.7753]
[1734395160664,0.86275853,3959.1,3959.0,0.7753]
[1734395160870,1.03271192,3959.3,3959.0,0.7753]
[1734395161215,3.1895501,3959.2,3959.0,0.7753]
[1734395161364,0.86273527,3959.1,3959.0,0.7753]
[1734395161711,1.03271192,3959.3,3959.0,0.7753]
[1734395162084,1.03271192,3959.5,3959.0,0.7753]
[1734395162591,1.03271192,3959.3,3959.0,0.7753]
[1734395162794,8.28606375,3960.3,3959.0,0.7753]
[1734395162795,1.03271192,3959.2,3959.0,0.7753]
[1734395163309,3.18917824,3959.2,3959.0,0.7753]
[1734395163495,1.03271192,3959.3,3959.0,0.7753]
[1734395163709,0.86262507,3959.2,3959.0,0.7753]
[1734395163865,1.03271192,3959.4,3959.0,0.7753]
[1734395164067,1.03271192,3959.6,3959.0,0.7753]
[1734395164266,0.86263178,3959.5,3959.0,0.7753]
[1734395164505,1.03271192,3959.7,3959.0,0.7753]
[1734395165283,1.03271192,3960.0,3959.0,0.7753]
[1734395165797,0.7755,3959.0,3957.4,0.7588]
[1734395166003,1.04285667,3958.3,3957.4,0.7588]
[1734395166164,1.04285667,3957.8,3956.4,0.1638174]
[1734395166368,2.33615273,3957.7,3956.4,0.1638174]
[1734395166567,3.19834016,3957.6,3956.4,0.1638174]
[1734395166811,1.56428501,3957.8,3956.4,0.1638174]
[1734395166812,1.04285667,3957.4,3956.4,0.1638174]
[1734395167028,1.04285667,3957.0,3956.4,0.1638174]
[1734395167201,1.04285667,3956.8,3954.2,2.86819945]
[1734395167371,0.23264659,3956.7,3954.3,0.38681995]
[1734395167572,0.23264659,3956.6,3954.0,1.0]
[1734395167766,0.23264659,3956.5,3954.0,1.02528025]
[1734395168067,1.04285667,3956.8,3954.0,1.02528025]
[1734395168068,0.23264659,3956.4,3954.0,1.0]
[1734395168269,0.23264659,3956.3,3954.0,1.0]
[1734395168476,0.23193632,3956.2,3954.0,1.0]
[1734395168671,1.3255,3956.8,3954.2,0.55]
[1734395168875,0.55,3956.6,3954.1,0.17772424]
[1734395169075,0.55,3956.4,3954.2,0.7588]
[1734395169287,0.23193327,3956.3,3954.2,0.7588]
[1734395169514,5.33978501,3956.8,3954.3,0.78408277]
[1734395169515,0.37223455,3956.6,3954.3,0.78408277]
[1734395169720,0.7755,3956.8,3954.3,0.78408277]
[1734395169933,0.2316811,3956.7,3954.3,0.78408277]
[1734395170108,0.2316811,3956.6,3954.3,0.78408277]
[1734395170321,0.7755,3956.8,3954.3,0.7588]
[1734395170322,0.2316811,3956.5,3954.3,0.7588]
[1734395170629,0.7755,3956.8,3954.3,0.7588]
[1734395170630,0.23146648,3956.4,3954.3,0.7588]
[1734395170915,0.23146648,3956.3,3954.4,0.02528038]
[1734395171132,0.55,3956.7,3954.5,0.7588]
[1734395171426,0.37068976,3957.0,3954.8,0.7588]
[1734395171594,0.37012549,3957.4,3954.9,0.7588]
[1734395171795,0.23133859,3957.3,3954.9,0.7588]
[1734395172147,0.23133859,3957.2,3955.0,0.7588]
[1734395172417,0.37012549,3958.0,3955.0,0.7588]
[1734395172576,0.23132098,3957.9,3955.0,0.7588]
[1734395173089,0.55,3957.8,3955.0,0.7588]
[1734395173292,0.55,3957.6,3955.1,0.02527511]
[1734395173617,0.23132098,3957.5,3955.4,0.7631]
[1734395173925,0.12340178,3957.9,3954.8,0.55]
[1734395173926,0.23132098,3957.4,3955.6,0.7631]
[1734395174217,0.55,3957.8,3955.6,0.7631]
[1734395174419,0.23110076,3957.7,3955.6,0.78837381]
[1734395174854,0.23109188,3957.6,3955.6,0.78837381]
[1734395175023,0.23109458,3957.5,3955.8,0.7631]
[1734395175360,0.7714,3958.3,3955.8,0.7631]
[1734395175568,0.2311261,3958.2,3955.8,0.7631]
[1734395175850,0.2311261,3958.1,3955.8,0.7631]
[1734395176057,0.2311261,3958.0,3955.8,0.7631]
[1734395176211,0.55,3958.1,3955.8,0.7631]
[1734395176212,0.7811261,3957.9,3955.8,0.7631]
[1734395176412,0.7811261,3957.8,3955.8,0.7631]
[1734395176611,0.55,3958.1,3955.8,0.7631]
[1734395176807,0.55,3957.9,3955.8,0.7631]
[1734395177013,0.55,3957.7,3955.8,0.7631]
[1734395177264,0.55,3957.5,3955.8,0.7631]
[1734395177469,0.12375762,3958.0,3955.8,0.7631]
[1734395177470,0.55,3957.3,3955.8,0.7631]
[1734395177762,0.23115212,3957.2,3955.8,0.7631]
[1734395178057,0.55,3957.9,3955.8,0.7631]
[1734395178360,0.26072904,3957.1,3955.8,0.7631]
[1734395178528,0.7732,3957.2,3955.8,0.7631]
[1734395178945,0.26073697,3957.0,3955.8,0.7631]
[1734395181262,0.23098407,3956.9,3955.8,0.7631]
[1734395181619,0.7732,3956.8,3955.8,0.7631]
[1734395182028,0.23092114,3956.7,3955.8,0.7631]
[1734395182440,0.7732,3956.8,3955.8,0.7631]
[1734395182640,3.55,3957.7,3955.8,0.7631]
[1734395182641,0.2308997,3956.6,3955.8,0.7631]
[1734395182826,0.36943952,3957.6,3955.9,0.02527958]
[1734395183157,0.2309263,3957.5,3955.1,0.7646]
[1734395183342,0.2309263,3957.4,3955.1,0.7646]
[1734395183543,0.2309263,3957.3,3955.1,0.7646]
[1734395183860,1.0041263,3957.2,3955.1,0.7646]
[1734395184035,0.2309263,3957.1,3955.1,0.7646]
[1734395184362,0.7732,3957.2,3955.1,0.7646]
[1734395184363,0.7809263,3957.0,3955.1,0.7646]
[1734395184539,0.55,3956.8,3955.1,0.7646]
[1734395184729,0.55,3957.0,3955.1,0.7646]
[1734395184730,0.2309263,3956.7,3955.1,0.7646]
[1734395184946,0.55,3956.5,3955.1,0.7646]
[1734395185148,1.0041263,3956.4,3955.1,0.7646]
[1734395185351,0.7809263,3956.3,3955.1,0.7646]
[1734395185667,0.7732,3956.4,3955.1,0.7646]
[1734395185668,0.55,3956.1,3955.1,0.7646]
[1734395185964,0.23086031,3956.0,3955.1,0.7646]
[1734395186162,0.55,3955.9,3955.1,0.7646]
[1734395186462,0.55,3955.7,3954.2,0.7646]
[1734395186663,0.23086031,3955.6,3954.2,0.7646]
[1734395186959,0.23086031,3955.6,3954.2,0.94106]
[1734395187871,0.23086031,3955.6,3954.3,0.02528715]
[1734395188081,0.23086031,3955.5,3954.3,0.7646]
[1734395188231,0.23086031,3955.4,3954.4,0.78988516]
[1734395188438,0.1236188,3956.7,3954.4,0.78988516]
[1734395188628,0.23101141,3956.6,3954.4,0.78988516]
[1734395188832,0.23101141,3956.5,3954.5,0.55]
[1734395189019,0.3693765,3957.6,3954.9,0.7941]
[1734395189221,0.60047279,3957.5,3954.9,0.7941]
[1734395189520,0.23109629,3957.4,3954.9,0.7941]
[1734395189722,0.23109629,3957.3,3954.9,0.7941]
[1734395189918,0.23109629,3957.2,3954.9,0.7941]
[1734395190121,0.23109629,3957.1,3955.1,0.7941]
[1734395190366,0.23109629,3957.0,3955.1,0.7941]
[1734395190656,0.12676101,3957.3,3955.1,0.7941]
[1734395190657,0.23109629,3956.9,3955.1,0.7941]
[1734395190877,0.3693765,3957.9,3955.4,0.7941]
[1734395191031,1.03365838,3958.5,3955.8,0.55]
[1734395191032,0.23131538,3957.8,3955.8,0.55]
[1734395191364,0.23131538,3957.7,3956.1,0.7941]
[1734395191562,0.23131538,3957.6,3956.3,0.7941]
[1734395191765,0.23143118,3957.5,3956.3,0.81936782]
[1734395191967,0.3693765,3958.5,3956.3,0.7941]
[1734395192261,0.773,3959.3,3956.3,0.7941]
[1734395192262,0.60080911,3958.4,3956.3,0.7941]
[1734395192423,0.60080911,3958.3,3956.3,0.7941]
[1734395192627,0.23143261,3958.2,3956.3,0.7941]
[1734395192824,1.04285667,3959.0,3956.3,0.7941]
[1734395192825,0.23143261,3958.1,3956.3,0.7941]
[1734395193132,0.23143261,3958.0,3956.3,0.7941]
[1734395193318,0.23143261,3957.9,3956.4,0.02527089]
[1734395193521,0.12379567,3958.6,3956.5,0.7941]
[1734395193522,0.23143261,3957.8,3956.5,0.7941]
[1734395193748,0.23143261,3957.7,3956.7,0.7941]
[1734395193972,0.55,3958.9,3956.9,0.7941]
[1734395194192,0.55,3958.7,3956.9,0.7941]
[1734395194472,1.81585667,3959.3,3956.9,0.7941]
[1734395194473,0.55,3958.5,3956.9,0.7941]
[1734395194676,0.60103072,3958.4,3956.9,0.7941]
[1734395194818,0.60103072,3958.3,3956.9,0.7941]
[1734395195020,0.60103072,3958.2,3956.9,0.7941]
[1734395195265,0.6029361,3958.1,3956.9,0.7941]
[1734395195423,0.6029361,3958.0,3956.9,0.7941]
[1734395195621,0.6029361,3957.9,3956.9,0.7941]
[1734395195821,0.6029361,3957.8,3956.9,0.7941]
[1734395196032,0.6029361,3957.7,3956.9,0.7941]
[1734395196280,0.2318985,3957.6,3956.9,0.7941]
[1734395196570,0.2318985,3957.5,3956.9,0.7941]
[1734395196773,0.2318985,3957.4,3956.9,0.7941]
[1734395196975,0.12748375,3958.7,3956.9,0.7941]
[1734395196976,0.773,3958.3,3956.9,0.7941]
[1734395197270,1.15368934,3958.2,3956.9,0.7941]
[1734395197453,0.60368934,3958.1,3956.9,0.7941]
[1734395197657,0.60368934,3958.0,3956.9,0.7941]
[1734395197851,0.60368934,3957.9,3956.9,0.7941]
[1734395198055,0.60368934,3957.8,3956.9,0.7941]
[1734395198274,0.55,3957.6,3955.2,0.7941]
[1734395198474,0.60368934,3957.5,3955.2,0.7941]
[1734395198773,4.33576602,3957.4,3955.2,0.7941]
[1734395198956,1.59285667,3957.2,3955.2,0.7941]
[1734395199140,0.55,3957.0,3955.2,0.7941]
[1734395199342,0.55,3956.8,3955.2,0.7941]
[1734395199667,0.55,3956.6,3955.2,0.7941]
[1734395199972,3.0,3957.0,3955.2,0.7941]
[1734395199973,0.55,3956.4,3955.2,0.7941]
[1734395200268,0.60368934,3956.3,3955.2,0.7941]
[1734395200488,0.60368934,3956.2,3955.2,0.7941]
[1734395200671,0.60368934,3956.1,3955.2,0.7941]
[1734395200964,0.60368934,3956.0,3955.2,0.7941]
[1734395201167,0.60368934,3955.9,3955.2,0.7941]
[1734395201338,0.23218821,3955.8,3955.2,0.7941]
[1734395201542,0.23218821,3955.7,3955.2,0.7941]
[1734395201850,0.7826,3957.1,3955.2,0.7941]
[1734395201851,0.23218821,3955.6,3955.2,0.7941]
[1734395202053,0.23218821,3955.5,3955.2,0.7941]
[1734395202364,1.4143578,3957.0,3955.2,0.7941]
[1734395202365,0.37150113,3956.9,3955.2,0.7941]
[1734395202668,2.00958589,3956.8,3955.2,0.7941]
[1734395202868,0.60348901,3956.7,3955.2,0.7941]
[1734395203078,0.60348901,3956.6,3955.2,0.7941]
[1734395203273,0.60348901,3956.5,3955.2,0.7941]
[1734395203481,0.60348901,3956.4,3955.2,0.7941]
[1734395203630,0.60348901,3956.3,3955.2,0.7941]
[1734395203942,0.60348901,3956.2,3955.2,0.7941]
[1734395204149,0.60348901,3956.1,3955.2,0.7941]
[1734395204455,0.23198788,3956.0,3955.2,0.7941]
[1734395204640,0.26050201,3956.6,3955.2,0.7941]
[1734395204840,0.60305292,3956.5,3955.2,0.7941]
[1734395205039,0.60305292,3956.4,3955.2,0.7941]
[1734395205256,0.60321522,3956.3,3955.2,0.7941]
[1734395205457,0.60321522,3956.2,3955.2,0.7941]
[1734395205772,0.60321522,3956.1,3955.2,0.7941]
[1734395206082,1.05690585,3956.0,3954.1,1.3441]
[1734395206238,0.23200585,3955.9,3954.3,0.7941]
[1734395206424,0.8249,3956.0,3954.3,0.7941]
[1734395206425,0.60321522,3955.8,3954.3,0.7941]
[1734395206646,0.8249,3956.0,3954.3,0.7941]
[1734395206647,0.55,3955.6,3954.3,0.7941]
[1734395206839,0.23200585,3955.5,3954.3,0.7941]
[1734395207166,0.23200585,3955.4,3954.3,0.7941]
[1734395207469,0.23200585,3955.3,3954.3,0.7941]
[1734395207629,0.23200585,3955.2,3954.3,0.7941]
[1734395207970,0.23200585,3955.1,3954.3,0.7941]
[1734395208172,0.37120937,3955.9,3954.3,0.7941]
[1734395208379,0.23177914,3955.8,3954.3,0.7941]
[1734395208581,0.23177914,3955.8,3954.0,1.02528289]
[1734395208582,0.23177914,3955.7,3954.4,0.81938289]
[1734395208789,0.37120937,3956.5,3954.4,0.81938289]
[1734395208967,0.26050201,3956.6,3954.4,0.7941]
[1734395208968,0.60300655,3956.4,3954.4,0.7941]
[1734395209136,0.60300655,3956.3,3954.4,0.7941]
[1734395209335,0.23179718,3956.2,3954.4,0.7941]
[1734395209634,1.30335868,3956.6,3954.4,0.7941]
[1734395209635,0.23179718,3956.1,3954.4,0.7941]
[1734395209861,0.23179718,3956.0,3954.6,0.7941]
[1734395210061,0.26050201,3956.6,3954.9,0.55]
[1734395210244,0.23181634,3956.5,3955.0,0.7941]
[1734395210459,0.23181634,3956.4,3955.0,0.7941]
[1734395210665,0.23181634,3956.3,3955.0,0.7941]
[1734395210878,0.26048495,3957.1,3955.0,0.7941]
[1734395211060,0.23182491,3957.0,3955.2,0.7941]
[1734395211275,0.23182491,3956.9,3955.2,0.7941]
[1734395211484,3.42321236,3956.8,3955.2,0.7941]
[1734395211687,2.75156506,3956.7,3955.2,0.7941]
[1734395211992,1.46244659,3956.6,3955.2,0.7941]
[1734395212162,0.23182491,3956.5,3955.2,0.7941]
[1734395212365,0.23182491,3956.4,3955.2,0.7941]
[1734395212591,0.23182491,3956.3,3955.2,0.7941]
[1734395212785,0.23182491,3956.2,3955.2,0.7941]
[1734395212954,1.41406604,3956.5,3955.2,0.7941]
[1734395212955,0.23182491,3956.1,3955.2,0.7941]